fUSD/lending_fUSD_20260416
["ID","MTS","AMOUNT","RATE_DAILY","PERIOD"]
[420581519,1776273867131,-461.79094407,0.00045184,120]
[420581520,1776273867334,-500.0,0.00045184,120]
[420581521,1776273867534,-405.78369386,0.00045184,120]
[420581522,1776273867717,-444.89002823,0.00045184,120]
[420581523,1776273867913,-154.59610753,0.00045184,120]
[420581524,1776273868116,-281.74150004,0.00045184,120]
[420581525,1776273868303,-165.10894362,0.00045184,120]
[420581526,1776273868483,-542.70459396,0.00045184,120]
[420581527,1776273868658,-502.16728576,0.00045184,120]
[420581528,1776273868837,-198.14557791,0.00045184,120]
[420581529,1776273869017,-219.88315625,0.00045184,120]
[420581530,1776273869185,-153.27387726,0.00045184,120]
[420581531,1776273869425,-203.46070907,0.00045184,120]
[420581532,1776273870579,-339.1,0.00045184,120]
[420581533,1776273870761,-167.15146913,0.00045184,120]
[420581534,1776273870951,-154.58807228,0.00045184,120]
[420581535,1776273871137,-168.67533578,0.00045184,120]
[420581537,1776273871317,-159.18432876,0.00045184,120]
[420581538,1776273871528,-495.23347043,0.00045184,120]
[420581539,1776273871816,-177.44108059,0.00045184,120]
[420581540,1776273872004,-169.29836641,0.00045184,120]
[420581541,1776273872177,-500.0,0.00045184,120]
[420581542,1776273872404,-156.92902044,0.00045184,120]
[420581543,1776273872699,-298.29236836,0.00045184,120]
[420581544,1776273872888,-211.45991656,0.00045184,120]
[420581545,1776273873063,-327.60473301,0.00045184,120]
[420581546,1776273873229,-256.08903113,0.00045184,120]
[420581547,1776273873389,-500.0,0.00045184,120]
[420581548,1776273873549,-159.13180001,0.00045184,120]
[420581549,1776273873710,-216.00428752,0.00045184,120]
[420581550,1776273873867,-500.0,0.00045184,120]
[420581551,1776273874033,-500.0,0.00045184,120]
[420581552,1776273874201,-469.4786,0.00045184,120]
[420581553,1776273874381,-374.88595738,0.00045184,120]
[420581554,1776273874549,-500.0,0.00045184,120]
[420581555,1776273874720,-500.0,0.00045184,120]
[420581556,1776273874882,-500.0,0.00045184,120]
[420581557,1776273875041,-183.46210016,0.00045184,120]
[420581558,1776273875197,-500.0,0.00045184,120]
[420581559,1776273875356,-308.83234886,0.00045184,120]
[420581560,1776273875515,-258.38295251,0.00045184,120]
[420581561,1776273875674,-557.97160543,0.00045184,120]
[420581562,1776273875830,-314.81799642,0.00045184,120]
[420581563,1776273875985,-251.38241909,0.00045184,120]
[420581564,1776273876156,-500.0,0.00045184,120]
[420581565,1776273876321,-500.0,0.00045184,120]
[420581566,1776273876482,-600.49899106,0.00045184,120]
[420581567,1776273876642,-500.0,0.00045184,120]
[420581568,1776273876801,-197.2170837,0.00045184,120]
[420581569,1776273876964,-204.97546534,0.00045184,120]
[420581570,1776273877135,-500.0,0.00045184,120]
[420581571,1776273877300,-500.0,0.00045184,120]
[420581572,1776273877472,-500.0,0.00045184,120]
[420581573,1776273877646,-446.27051982,0.00045184,120]
[420581574,1776273877809,-174.55,0.00045184,120]
[420581575,1776273877977,-500.0,0.00045184,120]
[420581576,1776273878144,-192.54255137,0.00045184,120]
[420581577,1776273878317,-162.77634743,0.00045184,120]
[420581578,1776273878486,-174.55,0.00045184,120]
[420581579,1776273878663,-174.55,0.00045184,120]
[420581580,1776273878842,-174.55,0.00045184,120]
[420581581,1776273879010,-174.55,0.00045184,120]
[420581582,1776273879180,-545.34737481,0.00045184,120]
[420581583,1776273879353,-174.55,0.00045184,120]
[420581584,1776273879539,-174.55,0.00045184,120]
[420581585,1776273879758,-174.55,0.00045184,120]
[420581586,1776273879934,-368.98547124,0.00045184,120]
[420581587,1776273880121,-174.55,0.00045184,120]
[420581588,1776273880324,-178.3497112,0.00045184,120]
[420581589,1776273880503,-500.0,0.00045184,120]
[420581590,1776273880740,-347.1253193,0.00045184,120]
[420581591,1776273881055,-174.55,0.00045184,120]
[420581592,1776273881282,-481.80195127,0.00045184,120]
[420581593,1776273881458,-174.55,0.00045184,120]
[420581594,1776273881619,-370.51697505,0.00045184,120]
[420581595,1776273881782,-500.0,0.00045184,120]
[420581596,1776273881940,-500.0,0.00045184,120]
[420581597,1776273882102,-239.67139979,0.00045184,120]
[420581598,1776273882399,-174.55,0.00045184,120]
[420581599,1776273882880,-174.55,0.00045184,120]
[420581600,1776273883114,-174.55,0.00045184,120]
[420581601,1776273883297,-174.55,0.00045184,120]
[420581602,1776273883461,-174.55,0.00045184,120]
[420581603,1776273883630,-174.55,0.00045184,120]
[420581604,1776273883793,-174.55,0.00045184,120]
[420581605,1776273883965,-160.92349449,0.00045184,120]
[420581606,1776273884139,-174.55,0.00045184,120]
[420581607,1776273884307,-174.55,0.00045184,120]
[420581608,1776273884468,-174.55,0.00045184,120]
[420581609,1776273884628,-174.55,0.00045184,120]
[420581610,1776273884796,-239.44612207,0.00045184,120]
[420581611,1776273884956,-174.55,0.00045184,120]
[420581612,1776273885127,-160.24820569,0.00045184,120]
[420581613,1776273885294,-174.6,0.00045184,120]
[420581614,1776273885461,-214.67198013,0.00045184,120]
[420581615,1776273885641,-355.94201387,0.00045184,120]
[420581616,1776273885807,-500.0,0.00045184,120]
[420581617,1776273885967,-153.98161968,0.00045184,120]
[420581618,1776273886130,-368.84168153,0.00045184,120]
[420581619,1776273886293,-635.3937,0.00045184,120]
[420581620,1776273886458,-465.53944126,0.00045184,120]
[420581621,1776273886613,-51470.5812429,0.00045184,120]
[420581622,1776273886776,-466.80230128,0.00045184,120]
[420581623,1776273886932,-425.8016659,0.00045184,120]
[420581624,1776273887098,-500.0,0.00045184,120]
[420581625,1776273887256,-500.0,0.00045184,120]
[420581626,1776273887410,-500.0,0.00045184,120]
[420581627,1776273887562,-500.0,0.00045184,120]
[420581628,1776273888439,-500.0,0.00045184,120]
[420581629,1776273888600,-500.0,0.00045184,120]
[420581630,1776273888769,-500.0,0.00045184,120]
[420581631,1776273888935,-500.0,0.00045184,120]
[420581632,1776273889103,-415.35163308,0.00045184,120]
[420581633,1776273889268,-1816.0,0.00045184,120]
[420581634,1776273889429,-500.0,0.00045184,120]
[420581635,1776273889603,-500.0,0.00045184,120]
[420581636,1776273889812,-500.0,0.00045184,120]
[420581637,1776273890023,-500.0,0.00045184,120]
[420581638,1776273890182,-500.0,0.00045184,120]
[420581639,1776273890347,-500.0,0.00045184,120]
[420581640,1776273890510,-500.0,0.00045184,120]
[420581641,1776273890737,-500.0,0.00045184,120]
[420581642,1776273891143,-500.0,0.00045184,120]
[420581643,1776273891347,-500.0,0.00045184,120]
[420581644,1776273891528,-500.0,0.00045184,120]
[420581645,1776273891702,-500.0,0.00045184,120]
[420581646,1776273891854,-500.0,0.00045184,120]
[420581647,1776273892008,-500.0,0.00045184,120]
[420581648,1776273892164,-500.0,0.00045184,120]
[420581649,1776273892315,-500.0,0.00045184,120]
[420581650,1776273892472,-500.0,0.00045184,120]
[420581651,1776273892633,-500.0,0.00045184,120]
[420581652,1776273892812,-500.0,0.00045184,120]
[420581653,1776273893165,-212.71283653,0.00045184,120]
[420581654,1776273893656,-2760.75944567,0.00045184,120]
[420581655,1776273893977,-193.63608376,0.00045184,120]
[420581656,1776273894153,-188.28059976,0.00045184,120]
[420581657,1776273894317,-195.0,0.00045184,120]
[420581658,1776273894473,-195.0,0.00045184,120]
[420581659,1776273894634,-195.0,0.00045184,120]
[420581660,1776273894793,-643.0,0.00045184,120]
[420581661,1776273894950,-195.0,0.00045184,120]
[420581662,1776273895107,-643.0,0.00045184,120]
[420581663,1776273895265,-195.0,0.00045184,120]
[420581664,1776273895434,-500.0,0.00045184,120]
[420581665,1776273895602,-643.0,0.00045184,120]
[420581666,1776273895774,-500.0,0.00045184,120]
[420581667,1776273895961,-500.0,0.00045184,120]
[420581668,1776273896138,-506.25869427,0.00045184,120]
[420581669,1776273896303,-195.0,0.00045184,120]
[420581670,1776273896487,-860.35221541,0.00045184,120]
[420581671,1776273896676,-643.0,0.00045184,120]
[420581672,1776273896872,-171.69268671,0.00045184,120]
[420581673,1776273897062,-643.0,0.00045184,120]
[420581674,1776273897240,-643.0,0.00045184,120]
[420581675,1776273897409,-25381.41145212,0.00045184,120]
[420581676,1776273897576,-156.18068413,0.00045184,120]
[420581677,1776273897750,-524.49695802,0.00045184,120]
[420581678,1776273897938,-824.43189503,0.00045184,120]
[420581679,1776273898128,-194.53791301,0.00045184,120]
[420581680,1776273898298,-365.64074796,0.00045184,120]
[420581681,1776273898464,-383.20589883,0.00045184,120]
[420581682,1776273898631,-262.88,0.00045184,120]
[420581683,1776273898850,-2505.250158,0.00045184,120]
[420581684,1776273899132,-107332.76248152,0.00045184,120]
[420581696,1776274102466,-275.0,9.725e-05,2]
[420581697,1776274102477,-250.0,9.726e-05,2]
[420581698,1776274102488,-379.98975275,9.908e-05,2]
[420581699,1776274102498,-300.0,9.92e-05,2]
[420581700,1776274102509,-1200.0,9.92e-05,2]
[420581701,1776274102519,-2321.36031095,9.921e-05,2]
[420581702,1776274103736,-1844.41973602,9.921e-05,2]
[420581703,1776274103755,-102.49995303,9.921e-05,2]
[420581704,1776274103768,-200.0,9.941e-05,2]
[420581705,1776274103788,-2000.0,0.00010226,2]
[420581706,1776274103800,-3403.14233497,0.00010519,2]
[420581707,1776274103818,-1300.53954303,0.00010519,2]
[420581708,1776274103838,-50.60638136,0.00010599,2]
[420581709,1776274103859,-99.39361864,0.00010599,2]
[420581710,1776274103869,-422.60883234,0.000106,2]
[420581711,1776274103895,-2300.0,0.000106,2]
[420581712,1776274103911,-196245.54756766,0.000106,2]
[420581713,1776274103925,-250.0,0.00010698,2]
[420581714,1776274103939,-23176.32534888,0.000107,2]
[420581715,1776274103953,-500.0,0.00010712,2]
[420581716,1776274103966,-500.0,0.00010712,2]
[420581717,1776274103978,-500.0,0.00010712,2]
[420581718,1776274103993,-150.0,0.00010712,2]
[420581719,1776274104006,-500.0,0.00010712,2]
[420581720,1776274104020,-168.59241014,0.00010712,2]
[420581721,1776274104037,-220.26329783,0.00010712,2]
[420581722,1776274104054,-150.0,0.00010712,2]
[420581723,1776274104064,-500.0,0.00010712,2]
[420581724,1776274104086,-150.0,0.00010712,2]
[420581725,1776274104102,-580.60632942,0.00010712,2]
[420581726,1776274104119,-150.0,0.00010712,2]
[420581727,1776274104139,-287.57091441,0.00010712,2]
[420581728,1776274104154,-151.02179424,0.00010712,2]
[420581729,1776274104170,-150.0,0.000108,2]
[420581730,1776274104205,-441.04769442,0.00010898,2]
[420581731,1776274104229,-420.0,0.00010913,2]
[420581732,1776274104269,-1680.0,0.00010913,2]
[420581733,1776274104304,-1896.7,0.00010916,2]
[420581734,1776274104340,-200.0,0.00010959,2]
[420581735,1776274104375,-150.0,0.00010959,2]
[420581736,1776274104386,-3477.08,0.00010959,2]
[420581737,1776274104419,-150.0,0.0001096,2]
[420581738,1776274104431,-179.94,0.0001096,2]
[420581739,1776274104458,-179.95,0.0001096,2]
[420581740,1776274104472,-164.42,0.0001096,2]
[420581741,1776274104493,-164.43,0.0001096,2]
[420581742,1776274104504,-161.19100432,0.00010973,2]
[420581743,1776274104518,-501.02638481,0.00010973,2]
[420581744,1776274104538,-200.0,0.00010986,2]
[420581745,1776274104548,-500.0,0.00010991,2]
[420581746,1776274104563,-500.0,0.00010991,2]
[420581747,1776274104591,-500.0,0.00010991,2]
[420581748,1776274104609,-500.0,0.00010991,2]
[420581749,1776274104635,-500.0,0.00010991,2]
[420581750,1776274104652,-500.0,0.00010991,2]
[420581751,1776274104674,-521.03006109,0.00010991,2]
[420581752,1776274104698,-500.0,0.00010991,2]
[420581753,1776274104717,-500.0,0.00010991,2]
[420581754,1776274104743,-500.0,0.00010991,2]
[420581755,1776274104757,-500.0,0.00010991,2]
[420581756,1776274104790,-500.0,0.00010991,2]
[420581757,1776274104809,-500.0,0.00010991,2]
[420581758,1776274104838,-500.0,0.00010991,2]
[420581759,1776274104882,-500.0,0.00010991,2]
[420581760,1776274104919,-500.0,0.00010991,2]
[420581761,1776274104941,-500.0,0.00010991,2]
[420581762,1776274104969,-500.0,0.00010991,2]
[420581763,1776274104986,-500.0,0.00010991,2]
[420581764,1776274105017,-500.0,0.00010991,2]
[420581765,1776274105040,-500.0,0.00010991,2]
[420581766,1776274105063,-513.94672882,0.00010991,2]
[420581767,1776274105091,-500.0,0.00010991,2]
[420581768,1776274105106,-500.0,0.00010991,2]
[420581769,1776274105124,-200.0,0.00010991,2]
[420581770,1776274105146,-500.0,0.00010991,2]
[420581771,1776274105160,-500.0,0.00010991,2]
[420581772,1776274105186,-500.0,0.00010991,2]
[420581773,1776274105200,-500.0,0.00010991,2]
[420581774,1776274105211,-500.0,0.00010991,2]
[420581775,1776274105233,-500.0,0.00010991,2]
[420581776,1776274105248,-500.0,0.00010991,2]
[420581777,1776274105268,-500.0,0.00010991,2]
[420581778,1776274105290,-500.0,0.00010991,2]
[420581779,1776274105305,-500.0,0.00010991,2]
[420581780,1776274105336,-500.0,0.00010991,2]
[420581781,1776274105349,-500.0,0.00010991,2]
[420581782,1776274105380,-500.0,0.00010991,2]
[420581783,1776274105401,-500.0,0.00010991,2]
[420581784,1776274105425,-500.0,0.00010991,2]
[420581785,1776274105445,-500.0,0.00010991,2]
[420581786,1776274105466,-500.0,0.00010991,2]
[420581787,1776274105481,-500.0,0.00010991,2]
[420581788,1776274105509,-166.26479661,0.00010991,2]
[420581789,1776274105531,-500.0,0.00010991,2]
[420581790,1776274105569,-500.0,0.00010991,2]
[420581791,1776274105618,-531.86403704,0.00010991,2]
[420581792,1776274105675,-500.0,0.00010991,2]
[420581793,1776274105724,-500.0,0.00010991,2]
[420581794,1776274105771,-351.18164289,0.00010991,2]
[420581795,1776274105806,-500.0,0.00010991,2]
[420581796,1776274105852,-500.0,0.00010991,2]
[420581797,1776274105917,-500.0,0.00010991,2]
[420581798,1776274105995,-500.0,0.00010991,2]
[420581799,1776274106044,-500.0,0.00010991,2]
[420581800,1776274106088,-500.0,0.00010991,2]
[420581801,1776274106118,-500.0,0.00010991,2]
[420581802,1776274106140,-500.0,0.00010991,2]
[420581803,1776274106160,-500.0,0.00010991,2]
[420581804,1776274106177,-500.0,0.00010991,2]
[420581805,1776274106191,-200.0,0.00010991,2]
[420581806,1776274106202,-500.0,0.00010991,2]
[420581807,1776274106216,-500.0,0.00010991,2]
[420581808,1776274106226,-500.0,0.00010991,2]
[420581809,1776274106238,-500.0,0.00010991,2]
[420581810,1776274106249,-500.0,0.00010991,2]
[420581811,1776274106261,-500.0,0.00010991,2]
[420581812,1776274106271,-500.0,0.00010991,2]
[420581813,1776274106280,-500.0,0.00010991,2]
[420581814,1776274106290,-500.0,0.00010991,2]
[420581815,1776274106302,-500.0,0.00010991,2]
[420581816,1776274106312,-500.0,0.00010991,2]
[420581817,1776274106323,-500.0,0.00010991,2]
[420581818,1776274106333,-500.0,0.00010991,2]
[420581819,1776274106343,-500.0,0.00010991,2]
[420581820,1776274106353,-506.52843577,0.00010991,2]
[420581821,1776274106363,-501.45895563,0.00010991,2]
[420581822,1776274106374,-500.0,0.00010991,2]
[420581823,1776274106383,-500.0,0.00010991,2]
[420581824,1776274106393,-506.52843577,0.00010991,2]
[420581825,1776274106402,-500.0,0.00010991,2]
[420581826,1776274106412,-506.52843577,0.00010991,2]
[420581827,1776274106423,-373.70594928,0.00010991,2]
[420581828,1776274106432,-506.52843577,0.00010991,2]
[420581829,1776274106442,-500.0,0.00010991,2]
[420581830,1776274106452,-506.52843577,0.00010991,2]
[420581831,1776274106462,-250.0,0.00010992,2]
[420581832,1776274106472,-371.0,0.00010992,5]
[420581833,1776274106481,-41254.46426837,0.00010992,2]
[420581834,1776274106496,-3558.96512418,0.00010992,2]
[420581835,1776274106508,-1557.27262659,0.00010992,2]
[420581836,1776274107026,-150.0,0.000105,2]
[420581837,1776274107036,-4826.28028505,0.00010992,2]
[420581838,1776274107054,-3000.0,0.00010992,2]
[420581839,1776274107066,-667.96197469,0.00010992,2]
[420581840,1776274107077,-7231.10946283,0.00010992,2]
[420581841,1776274107101,-308731.30577316,0.00010992,2]
[420581842,1776274107128,-1678.19997191,0.00010992,2]
[420581843,1776274107142,-504962.99843538,0.00010992,2]
[420581844,1776274107153,-361399.1674839,0.00010992,2]
[420581845,1776274107165,-235574.3304,0.00010992,2]
[420581846,1776274107183,-1857.30510108,0.00010992,2]
[420581847,1776274107268,-846.55523344,0.00010992,2]
[420581848,1776274107279,-588.18886166,0.00010992,2]
[420581849,1776274107306,-671.81221062,0.00010992,2]
[420581850,1776274108050,-3031.75376585,0.00010992,2]
[420581851,1776274108314,-18562.32902129,0.00010992,2]
[420581852,1776274108327,-195.73474906,0.00010998,2]
[420581853,1776274108344,-185.43,0.00011038,2]
[420581854,1776274108358,-209.89,0.0001126,2]
[420581855,1776274108371,-159.7,0.00011304,2]
[420581856,1776274108386,-166.37,0.00011335,2]
[420581857,1776274108406,-1481.52369638,0.00011366,2]
[420581858,1776274108419,-151.0,0.00011504,2]
[420581859,1776274108431,-2000.0,0.00011505,2]
[420581860,1776274108454,-746.7,0.00011507,2]
[420581861,1776274108469,-200.0,0.00011534,2]
[420581862,1776274108497,-1600.0,0.00011762,2]
[420581863,1776274108511,-191.766,0.000118,2]
[420581864,1776274108536,-155.35974407,0.0001193,2]
[420581865,1776274108546,-587.0,0.00012004,2]
[420581866,1776274108582,-2351.0,0.00012004,2]
[420581867,1776274108601,-441.04769442,0.00012065,2]
[420581868,1776274108618,-200.0,0.00012082,2]
[420581869,1776274108643,-160.0,0.00012336,2]
[420581870,1776274108663,-782.23768092,0.00012336,2]
[420581871,1776274108822,-589.25753408,0.00012336,2]
[420581872,1776274108851,-2582.99043,0.00012336,2]
[420581873,1776274108867,-160.0,0.00012336,2]
[420581874,1776274108904,-643.656387,0.00012336,2]
[420581875,1776274108932,-1127.312774,0.00012336,2]
[420581876,1776274108971,-11656.84039754,0.00012351,2]
[420581882,1776274145039,333.0,0.000165,30]
[420581883,1776274147193,166.0,0.000165,120]
[420581884,1776274152669,222.0,0.000161,120]
[420581885,1776274153474,333.0,0.000161,120]
[420581886,1776274154380,444.0,0.00016011,120]
[420581887,1776274159233,-506.24507887,0.00045236,60]
[420581888,1776274159263,-500.0,0.00045236,30]
[420581889,1776274159290,-500.0,0.00045236,30]
[420581890,1776274159319,-500.0,0.00045236,30]
[420581891,1776274159347,-500.0,0.00045236,30]
[420581892,1776274159378,-500.0,0.00045236,30]
[420581893,1776274159408,-500.0,0.00045236,30]
[420581894,1776274159436,-331.89749686,0.00045236,30]
[420581895,1776274159462,-1041.46,0.00045236,60]
[420581896,1776274159489,-1041.46,0.00045236,60]
[420581897,1776274159514,-1041.46,0.00045236,60]
[420581898,1776274159539,-1041.46,0.00045236,60]
[420581899,1776274159565,-1041.46,0.00045236,60]
[420581900,1776274159595,-1041.46,0.00045236,60]
[420581901,1776274159622,-1041.46,0.00045236,60]
[420581902,1776274159651,-1041.46,0.00045236,60]
[420581903,1776274159683,-1041.46,0.00045236,60]
[420581904,1776274159713,-1041.46,0.00045236,60]
[420581905,1776274159760,-1041.46,0.00045236,60]
[420581906,1776274159798,-1041.46,0.00045236,60]
[420581907,1776274159837,-1041.46,0.00045236,60]
[420581908,1776274159881,-1041.46,0.00045236,60]
[420581909,1776274159932,-1041.46,0.00045236,60]
[420581910,1776274159983,-1041.46,0.00045236,60]
[420581911,1776274160071,-1041.46,0.00045236,60]
[420581912,1776274160152,-1041.46,0.00045236,60]
[420581913,1776274160210,-1041.46,0.00045236,60]
[420581914,1776274160262,-1041.46,0.00045236,60]
[420581915,1776274160310,-1041.46,0.00045236,60]
[420581916,1776274160349,-1041.46,0.00045236,60]
[420581917,1776274160378,-1041.46,0.00045236,60]
[420581918,1776274160419,-1041.66790614,0.00045236,60]
[420581919,1776274160461,-50000.0,0.00045236,30]
[420581920,1776274160503,-500.0,0.00045236,30]
[420581921,1776274160538,-500.0,0.00045236,30]
[420581922,1776274160578,-500.0,0.00045236,30]
[420581923,1776274160611,-500.0,0.00045236,30]
[420581924,1776274160641,-500.0,0.00045236,30]
[420581925,1776274160671,-504.53181258,0.00045236,30]
[420581926,1776274160704,-500.0,0.00045236,60]
[420581927,1776274160732,-500.0,0.00045236,60]
[420581928,1776274160758,-500.0,0.00045236,60]
[420581929,1776274160787,-504.43279746,0.00045236,60]
[420581930,1776274160813,-99135.0703182,0.00045236,30]
[420581931,1776274160840,-4367.38507179,0.00045236,60]
[420581932,1776274160870,-500.0,0.00045236,60]
[420581933,1776274160895,-500.0,0.00045236,60]
[420581934,1776274160923,-500.0,0.00045236,60]
[420581935,1776274160949,-500.0,0.00045236,60]
[420581936,1776274160976,-500.0,0.00045236,60]
[420581937,1776274161002,-500.0,0.00045236,60]
[420581938,1776274161030,-500.0,0.00045236,60]
[420581939,1776274161059,-500.0,0.00045236,60]
[420581940,1776274161093,-500.0,0.00045236,60]
[420581941,1776274161650,-500.0,0.00045236,60]
[420581942,1776274161699,-500.0,0.00045236,60]
[420581943,1776274161754,-500.0,0.00045236,60]
[420581944,1776274161805,-500.0,0.00045236,60]
[420581945,1776274161879,-500.0,0.00045236,60]
[420581946,1776274161945,-513.39325192,0.00045236,60]
[420581947,1776274162017,-565.56,0.00045236,60]
[420581948,1776274162070,-565.56,0.00045236,60]
[420581949,1776274162114,-565.56,0.00045236,60]
[420581950,1776274162154,-565.56,0.00045236,60]
[420581951,1776274162191,-565.56,0.00045236,60]
[420581952,1776274162230,-565.56,0.00045236,60]
[420581953,1776274162269,-565.56,0.00045236,60]
[420581954,1776274162313,-565.56,0.00045236,60]
[420581955,1776274162353,-565.56,0.00045236,60]
[420581956,1776274162393,-565.56,0.00045236,60]
[420581957,1776274162428,-565.56,0.00045236,60]
[420581958,1776274162465,-565.56,0.00045236,60]
[420581959,1776274162502,-565.56,0.00045236,60]
[420581960,1776274162532,-565.56,0.00045236,60]
[420581961,1776274162566,-565.56,0.00045236,60]
[420581962,1776274162606,-565.56,0.00045236,60]
[420581963,1776274162641,-565.56,0.00045236,60]
[420581964,1776274162672,-565.56,0.00045236,60]
[420581965,1776274162703,-565.56,0.00045236,60]
[420581966,1776274162735,-565.56,0.00045236,60]
[420581967,1776274162769,-565.56,0.00045236,60]
[420581968,1776274162801,-565.56,0.00045236,60]
[420581969,1776274162837,-565.56,0.00045236,60]
[420581970,1776274162874,-565.64320876,0.00045236,60]
[420581971,1776274162911,-1977.8,0.00045236,31]
[420581972,1776274162945,-1977.8,0.00045236,31]
[420581973,1776274162983,-1977.8,0.00045236,31]
[420581974,1776274163017,-1977.8,0.00045236,31]
[420581975,1776274163064,-1977.8,0.00045236,31]
[420581976,1776274163107,-1977.8,0.00045236,31]
[420581977,1776274163151,-1977.8,0.00045236,31]
[420581978,1776274163197,-1977.8,0.00045236,31]
[420581979,1776274163263,-1977.8,0.00045236,31]
[420581980,1776274163313,-1977.8,0.00045236,31]
[420581981,1776274163360,-1977.8,0.00045236,31]
[420581982,1776274163405,-1977.8,0.00045236,31]
[420581983,1776274163444,-1977.8,0.00045236,31]
[420581984,1776274163502,-1977.8,0.00045236,31]
[420581985,1776274163550,-1977.8,0.00045236,31]
[420581986,1776274163601,-1977.8,0.00045236,31]
[420581987,1776274163693,-1977.8,0.00045236,31]
[420581988,1776274163793,-1977.8,0.00045236,31]
[420581989,1776274163863,-1977.8,0.00045236,31]
[420581990,1776274163926,-1977.8,0.00045236,31]
[420581991,1776274163977,-1977.8,0.00045236,31]
[420581992,1776274164016,-1977.8,0.00045236,31]
[420581993,1776274164048,-1977.8,0.00045236,31]
[420581994,1776274164090,-1977.8,0.00045236,31]
[420581995,1776274164122,-844.14,0.00045236,60]
[420581996,1776274164152,-844.14,0.00045236,60]
[420581997,1776274164184,-844.14,0.00045236,60]
[420581998,1776274164216,-844.14,0.00045236,60]
[420581999,1776274164246,-844.14,0.00045236,60]
[420582000,1776274164275,-844.14,0.00045236,60]
[420582001,1776274164304,-844.14,0.00045236,60]
[420582002,1776274164333,-844.14,0.00045236,60]
[420582003,1776274164360,-844.14,0.00045236,60]
[420582004,1776274164389,-844.14,0.00045236,60]
[420582005,1776274164417,-844.14,0.00045236,60]
[420582006,1776274164446,-844.14,0.00045236,60]
[420582007,1776274164476,-844.14,0.00045236,60]
[420582008,1776274164504,-844.14,0.00045236,60]
[420582009,1776274164532,-844.14,0.00045236,60]
[420582010,1776274164559,-844.14,0.00045236,60]
[420582011,1776274164588,-844.14,0.00045236,60]
[420582012,1776274164617,-844.14,0.00045236,60]
[420582013,1776274164645,-844.14,0.00045236,60]
[420582014,1776274164679,-844.14,0.00045236,60]
[420582015,1776274164712,-844.14,0.00045236,60]
[420582016,1776274164745,-844.14,0.00045236,60]
[420582017,1776274164774,-844.14,0.00045236,60]
[420582018,1776274164807,-844.20143579,0.00045236,60]
[420582019,1776274164840,-500.0,0.00045236,40]
[420582020,1776274164873,-500.0,0.00045236,40]
[420582021,1776274164902,-500.0,0.00045236,40]
[420582022,1776274164933,-500.0,0.00045236,40]
[420582023,1776274164967,-500.0,0.00045236,40]
[420582024,1776274165002,-500.0,0.00045236,40]
[420582025,1776274165033,-500.0,0.00045236,40]
[420582026,1776274165069,-500.0,0.00045236,40]
[420582027,1776274165104,-500.0,0.00045236,40]
[420582028,1776274165137,-500.0,0.00045236,40]
[420582029,1776274165173,-500.0,0.00045236,40]
[420582030,1776274165207,-500.0,0.00045236,40]
[420582031,1776274165242,-500.0,0.00045236,40]
[420582032,1776274165277,-500.0,0.00045236,40]
[420582033,1776274165315,-500.0,0.00045236,40]
[420582034,1776274165353,-500.0,0.00045236,40]
[420582035,1776274165399,-500.0,0.00045236,40]